fUSD/lending_fUSD_20250105
["ID","MTS","AMOUNT","RATE_DAILY","PERIOD"]
[347749182,1736093461762,-404.362946,9.315e-05,2]
[347749183,1736093461772,-707.61,9.315e-05,2]
[347749184,1736093461783,-2758.22,9.315e-05,2]
[347749185,1736093461793,-500.0,9.315e-05,2]
[347749186,1736093461803,-1004.07,9.315e-05,2]
[347749187,1736093461812,-500.0,9.315e-05,2]
[347749188,1736093461822,-994.13,9.315e-05,2]
[347749189,1736093461830,-540.89,9.315e-05,2]
[347749190,1736093461840,-638.23,9.315e-05,2]
[347749191,1736093461850,-936.98,9.315e-05,2]
[347749192,1736093461860,-500.0,9.315e-05,2]
[347749193,1736093461871,-714.43,9.315e-05,2]
[347749194,1736093461880,-376.50909,9.315e-05,2]
[347749195,1736093461890,-500.0,9.315e-05,2]
[347749196,1736093461900,-404.088734,9.315e-05,2]
[347749197,1736093461910,-4018.14,9.315e-05,2]
[347749198,1736093461920,-576.42,9.315e-05,2]
[347749199,1736093461930,-579.85,9.315e-05,2]
[347749200,1736093461940,-554.81,9.315e-05,2]
[347749201,1736093461950,-768.81,9.315e-05,2]
[347749202,1736093461960,-1663.25,9.315e-05,2]
[347749203,1736093461969,-500.0,9.315e-05,2]
[347749204,1736093461979,-500.0,9.315e-05,2]
[347749205,1736093461989,-375.919903,9.315e-05,2]
[347749206,1736093461999,-500.0,9.315e-05,2]
[347749207,1736093462008,-870.76,9.315e-05,2]
[347749208,1736093462018,-3514.34,9.315e-05,2]
[347749209,1736093462027,-403.4983,9.315e-05,2]
[347749210,1736093462037,-972.86,9.315e-05,2]
[347749211,1736093462047,-500.0,9.315e-05,2]
[347749212,1736093462057,-1212.28,9.315e-05,2]
[347749213,1736093462066,-928.76,9.315e-05,2]
[347749214,1736093462076,-626.28,9.315e-05,2]
[347749215,1736093462086,-1177.81,9.315e-05,2]
[347749216,1736093462096,-1032.98,9.315e-05,2]
[347749217,1736093462105,-807.78,9.315e-05,2]
[347749218,1736093462115,-2723.22,9.315e-05,2]
[347749219,1736093462125,-569.16,9.315e-05,2]
[347749220,1736093462134,-402.803781,9.315e-05,2]
[347749221,1736093462144,-647.44,9.315e-05,2]
[347749222,1736093462154,-375.527974,9.315e-05,2]
[347749223,1736093462164,-586.44,9.315e-05,2]
[347749224,1736093462174,-2820.24,9.315e-05,2]
[347749225,1736093462184,-1463.16,9.315e-05,2]
[347749226,1736093462193,-2129.06,9.315e-05,2]
[347749227,1736093462203,-625.48,9.315e-05,2]
[347749228,1736093462213,-758.75,9.315e-05,2]
[347749229,1736093462222,-7531.06,9.315e-05,2]
[347749230,1736093462232,-2335.63,9.315e-05,2]
[347749231,1736093462241,-500.0,9.315e-05,2]
[347749232,1736093462251,-1840.4,9.315e-05,2]
[347749233,1736093462260,-931.19,9.315e-05,2]
[347749234,1736093462270,-803.93,9.315e-05,2]
[347749235,1736093462280,-917.79,9.315e-05,2]
[347749236,1736093462289,-1119.32,9.315e-05,2]
[347749237,1736093462299,-3520.61,9.315e-05,2]
[347749238,1736093462309,-402.22777,9.315e-05,2]
[347749239,1736093462319,-500.0,9.315e-05,2]
[347749240,1736093462329,-706.11,9.315e-05,2]
[347749241,1736093462338,-500.0,9.315e-05,2]
[347749242,1736093462348,-4019.56,9.315e-05,2]
[347749243,1736093462357,-717.02,9.315e-05,2]
[347749244,1736093462367,-557.28,9.315e-05,2]
[347749245,1736093462376,-429.58022011,9.337e-05,2]
[347749246,1736093462386,-150.0,9.444e-05,2]
[347749247,1736093462396,-500.0,9.565e-05,2]
[347749248,1736093462405,-500.0,9.589e-05,2]
[347749249,1736093462416,-500.0,9.589e-05,2]
[347749250,1736093462426,-500.0,9.589e-05,2]
[347749251,1736093462435,-320.11244365,9.589e-05,2]
[347749252,1736093462445,-500.0,9.589e-05,2]
[347749253,1736093462454,-518.61,9.589e-05,2]
[347749254,1736093462464,-500.0,9.589e-05,2]
[347749255,1736093462473,-1944.31,9.589e-05,2]
[347749256,1736093462483,-500.0,9.589e-05,2]
[347749257,1736093462496,-500.0,9.589e-05,2]
[347749258,1736093462506,-500.0,9.589e-05,2]
[347749259,1736093462516,-500.0,9.589e-05,2]
[347749260,1736093462526,-513.01,9.589e-05,2]
[347749261,1736093462540,-1116.95,9.589e-05,2]
[347749262,1736093462550,-647.32,9.589e-05,2]
[347749263,1736093462559,-500.0,9.589e-05,2]
[347749264,1736093462570,-500.0,9.589e-05,2]
[347749265,1736093462579,-1247.07,9.589e-05,2]
[347749266,1736093462588,-418.21518097,9.589e-05,2]
[347749267,1736093462598,-710.57,9.589e-05,2]
[347749268,1736093462608,-785.01,9.589e-05,2]
[347749269,1736093462618,-2074.96,9.589e-05,2]
[347749270,1736093462628,-1942.88,9.589e-05,2]
[347749271,1736093462638,-500.0,9.589e-05,2]
[347749272,1736093462648,-500.0,9.589e-05,2]
[347749273,1736093462658,-582.62,9.589e-05,2]
[347749274,1736093462669,-500.0,9.589e-05,2]
[347749275,1736093462679,-5066.49,9.589e-05,2]
[347749276,1736093462688,-1196.95,9.589e-05,2]
[347749277,1736093462698,-500.0,9.589e-05,2]
[347749278,1736093462707,-500.0,9.589e-05,2]
[347749279,1736093462717,-651.13,9.589e-05,2]
[347749280,1736093462727,-1012.85,9.589e-05,2]
[347749281,1736093462736,-500.0,9.589e-05,2]
[347749282,1736093462746,-511.08,9.589e-05,2]
[347749283,1736093462756,-766.4,9.589e-05,2]
[347749284,1736093462766,-1917.18,9.589e-05,2]
[347749285,1736093462775,-162.382441,9.589e-05,2]
[347749286,1736093462784,-500.0,9.589e-05,2]
[347749287,1736093462794,-751.14,9.589e-05,2]
[347749288,1736093462803,-500.0,9.589e-05,2]
[347749289,1736093462813,-952.56,9.589e-05,2]
[347749290,1736093462822,-754.41,9.589e-05,2]
[347749291,1736093462832,-262.21868454,9.589e-05,2]
[347749292,1736093462841,-1737.28,9.589e-05,2]
[347749293,1736093462851,-886.39,9.589e-05,2]
[347749294,1736093462861,-500.0,9.589e-05,2]
[347749295,1736093462871,-500.0,9.589e-05,2]
[347749296,1736093462881,-500.0,9.589e-05,2]
[347749297,1736093462890,-526.36,9.589e-05,2]
[347749298,1736093462899,-737.15,9.589e-05,2]
[347749299,1736093462909,-500.0,9.589e-05,2]
[347749300,1736093462919,-3524.74,9.589e-05,2]
[347749301,1736093462929,-500.0,9.589e-05,2]
[347749302,1736093462938,-500.0,9.589e-05,2]
[347749303,1736093462947,-761.43,9.589e-05,2]
[347749304,1736093462958,-500.0,9.589e-05,2]
[347749305,1736093462967,-500.0,9.589e-05,2]
[347749306,1736093462977,-642.49,9.589e-05,2]
[347749307,1736093462987,-562.21,9.589e-05,2]
[347749308,1736093462997,-735.44,9.589e-05,2]
[347749309,1736093463007,-500.0,9.589e-05,2]
[347749310,1736093463018,-500.0,9.589e-05,2]
[347749311,1736093463029,-3187.24,9.589e-05,2]
[347749312,1736093463039,-882.75,9.589e-05,2]
[347749313,1736093463048,-546.34,9.589e-05,2]
[347749314,1736093463058,-520.15,9.589e-05,2]
[347749315,1736093463068,-500.0,9.589e-05,2]
[347749316,1736093463078,-649.07,9.589e-05,2]
[347749317,1736093463087,-844.88,9.589e-05,2]
[347749318,1736093463097,-2003.22,9.589e-05,2]
[347749319,1736093463107,-774.09,9.589e-05,2]
[347749320,1736093463117,-500.0,9.589e-05,2]
[347749321,1736093463127,-528.73,9.589e-05,2]
[347749322,1736093463137,-852.93,9.589e-05,2]
[347749323,1736093463213,-500.0,9.589e-05,2]
[347749324,1736093463223,-500.0,9.589e-05,2]
[347749325,1736093463233,-810.2,9.589e-05,2]
[347749326,1736093463243,-829.01,9.589e-05,2]
[347749327,1736093463254,-531.05,9.589e-05,2]
[347749328,1736093463263,-682.3,9.589e-05,2]
[347749329,1736093463273,-549.67,9.589e-05,2]
[347749330,1736093463284,-2055.76,9.589e-05,2]
[347749331,1736093463295,-543.01,9.589e-05,2]
[347749332,1736093463305,-500.0,9.589e-05,2]
[347749333,1736093463316,-500.0,9.589e-05,2]
[347749334,1736093463326,-500.0,9.589e-05,2]
[347749335,1736093463336,-2363.08,9.589e-05,2]
[347749336,1736093463347,-715.52,9.589e-05,2]
[347749337,1736093463358,-608.96,9.589e-05,2]
[347749338,1736093463368,-500.0,9.589e-05,2]
[347749339,1736093463378,-500.0,9.589e-05,2]
[347749340,1736093463389,-500.0,9.589e-05,2]
[347749341,1736093463399,-511.54,9.589e-05,2]
[347749342,1736093463409,-816.37,9.589e-05,2]
[347749343,1736093463421,-2036.65,9.589e-05,2]
[347749344,1736093463431,-547.7,9.589e-05,2]
[347749345,1736093463441,-710.61,9.589e-05,2]
[347749346,1736093463452,-485.03957143,9.589e-05,2]
[347749347,1736093463462,-540.03,9.589e-05,2]
[347749348,1736093463472,-560.43,9.589e-05,2]
[347749349,1736093463484,-500.0,9.589e-05,2]
[347749350,1736093463496,-1095.6,9.589e-05,2]
[347749351,1736093463507,-587.66,9.589e-05,2]
[347749352,1736093463517,-500.0,9.589e-05,2]
[347749353,1736093463528,-946.46,9.589e-05,2]
[347749354,1736093463538,-500.0,9.589e-05,2]
[347749355,1736093463548,-584.75,9.589e-05,2]
[347749356,1736093463560,-500.0,9.589e-05,2]
[347749357,1736093463570,-777.09,9.589e-05,2]
[347749358,1736093463580,-500.0,9.589e-05,2]
[347749359,1736093463590,-500.0,9.589e-05,2]
[347749360,1736093463600,-500.0,9.589e-05,2]
[347749361,1736093463611,-500.0,9.589e-05,2]
[347749362,1736093463620,-500.0,9.589e-05,2]
[347749363,1736093463631,-500.0,9.589e-05,2]
[347749364,1736093463641,-660.74,9.589e-05,2]
[347749365,1736093463652,-836.67,9.589e-05,2]
[347749366,1736093463662,-500.0,9.589e-05,2]
[347749367,1736093463673,-3034.01,9.589e-05,2]
[347749368,1736093463683,-645.35,9.589e-05,2]
[347749369,1736093463692,-1046.1,9.589e-05,2]
[347749370,1736093463702,-3701.46,9.589e-05,2]
[347749371,1736093463712,-941.56,9.589e-05,2]
[347749372,1736093463723,-500.0,9.589e-05,2]
[347749373,1736093463733,-500.0,9.589e-05,2]
[347749374,1736093463743,-568.91,9.589e-05,2]
[347749375,1736093463752,-833.84,9.589e-05,2]
[347749376,1736093463762,-820.61,9.589e-05,2]
[347749377,1736093463773,-582.64,9.589e-05,2]
[347749378,1736093463782,-621.13,9.589e-05,2]
[347749379,1736093463792,-501.63,9.589e-05,2]
[347749380,1736093463803,-500.0,9.589e-05,2]
[347749381,1736093463813,-615.11,9.589e-05,2]
[347749382,1736093463823,-649.76,9.589e-05,2]
[347749383,1736093463833,-432.03574883,9.589e-05,2]
[347749384,1736093463844,-1688.62,9.589e-05,2]
[347749385,1736093463854,-500.0,9.589e-05,2]
[347749386,1736093463864,-868.56,9.589e-05,2]
[347749387,1736093463874,-413.8255416,9.589e-05,2]
[347749388,1736093463883,-3762.06,9.589e-05,2]
[347749389,1736093463894,-1145.74,9.589e-05,2]
[347749390,1736093463905,-525.35,9.589e-05,2]
[347749391,1736093463915,-574.53,9.589e-05,2]
[347749392,1736093463927,-500.0,9.589e-05,2]
[347749393,1736093463941,-702.61,9.589e-05,2]
[347749394,1736093463951,-553.77,9.589e-05,2]
[347749395,1736093463961,-898.96,9.589e-05,2]
[347749396,1736093463972,-1387.22,9.589e-05,2]
[347749397,1736093463982,-574.79,9.589e-05,2]
[347749398,1736093463992,-549.17,9.589e-05,2]
[347749399,1736093464003,-729.47,9.589e-05,2]
[347749400,1736093464014,-910.32,9.589e-05,2]
[347749401,1736093464024,-500.0,9.589e-05,2]
[347749402,1736093464035,-970.62,9.589e-05,2]
[347749403,1736093464045,-500.0,9.589e-05,2]
[347749404,1736093464057,-527.29,9.589e-05,2]
[347749405,1736093464066,-500.0,9.589e-05,2]
[347749406,1736093464077,-500.0,9.589e-05,2]
[347749407,1736093464087,-500.0,9.589e-05,2]
[347749408,1736093464097,-676.38,9.589e-05,2]
[347749409,1736093464108,-879.45,9.589e-05,2]
[347749410,1736093464118,-504.21,9.589e-05,2]
[347749411,1736093464128,-701.89,9.589e-05,2]
[347749412,1736093464139,-919.5,9.589e-05,2]
[347749413,1736093464149,-652.07,9.589e-05,2]
[347749414,1736093464159,-500.0,9.589e-05,2]
[347749415,1736093464171,-500.0,9.589e-05,2]
[347749416,1736093464181,-899.28,9.589e-05,2]
[347749417,1736093464192,-605.08,9.589e-05,2]
[347749418,1736093464202,-878.43,9.589e-05,2]
[347749419,1736093464213,-500.0,9.589e-05,2]
[347749420,1736093464224,-867.42,9.589e-05,2]
[347749421,1736093464234,-1210.23,9.589e-05,2]
[347749422,1736093464244,-1086.36,9.589e-05,2]
[347749423,1736093464254,-676.02,9.589e-05,2]
[347749424,1736093464264,-767.55,9.589e-05,2]
[347749425,1736093464274,-853.53,9.589e-05,2]
[347749426,1736093464284,-500.0,9.589e-05,2]
[347749427,1736093464294,-500.0,9.589e-05,2]
[347749428,1736093464303,-500.0,9.589e-05,2]
[347749429,1736093464313,-705.93,9.589e-05,2]
[347749430,1736093464323,-500.0,9.589e-05,2]
[347749431,1736093464333,-500.0,9.589e-05,2]
[347749432,1736093464343,-914.97,9.589e-05,2]
[347749433,1736093464354,-500.0,9.589e-05,2]
[347749434,1736093464364,-675.73,9.589e-05,2]
[347749435,1736093464374,-672.42,9.589e-05,2]
[347749436,1736093464385,-727.18,9.589e-05,2]
[347749437,1736093464395,-500.0,9.589e-05,2]
[347749438,1736093464404,-500.0,9.589e-05,2]
[347749439,1736093464414,-567.84,9.589e-05,2]
[347749440,1736093464426,-552.49,9.589e-05,2]
[347749441,1736093464437,-500.0,9.589e-05,2]
[347749442,1736093464447,-764.16,9.589e-05,2]
[347749443,1736093464458,-1325.59,9.589e-05,2]
[347749444,1736093464468,-543.8,9.589e-05,2]
[347749445,1736093464479,-643.31,9.589e-05,2]
[347749446,1736093464494,-681.31,9.589e-05,2]
[347749447,1736093464504,-1100.99,9.589e-05,2]
[347749448,1736093464515,-500.0,9.589e-05,2]
[347749449,1736093464524,-500.24731072,9.589e-05,2]
[347749450,1736093464535,-554.91,9.589e-05,2]
[347749451,1736093464545,-572.41,9.589e-05,2]
[347749452,1736093464555,-500.0,9.589e-05,2]
[347749453,1736093464566,-500.0,9.589e-05,2]
[347749454,1736093464576,-184.2581611,9.589e-05,2]
[347749455,1736093464586,-980.48,9.589e-05,2]
[347749456,1736093464595,-578.15,9.589e-05,2]
[347749457,1736093464606,-631.99,9.589e-05,2]
[347749458,1736093464616,-1267.42,9.589e-05,2]
[347749459,1736093464626,-680.55,9.589e-05,2]
[347749460,1736093464636,-3974.11,9.589e-05,2]
[347749461,1736093464646,-906.26,9.589e-05,2]
[347749462,1736093464657,-1573.57,9.589e-05,2]
[347749463,1736093464667,-500.0,9.589e-05,2]
[347749464,1736093464678,-500.0,9.589e-05,2]
[347749465,1736093464688,-809.64,9.589e-05,2]
[347749466,1736093464698,-703.17,9.589e-05,2]
[347749467,1736093464707,-500.0,9.589e-05,2]
[347749468,1736093464717,-591.69,9.589e-05,2]
[347749469,1736093464729,-500.0,9.589e-05,2]
[347749470,1736093464738,-1135.97,9.589e-05,2]
[347749471,1736093464748,-520.01,9.589e-05,2]
[347749472,1736093464758,-1452.66,9.589e-05,2]
[347749473,1736093464767,-1808.46,9.589e-05,2]
[347749474,1736093464776,-602.76,9.589e-05,2]
[347749475,1736093464787,-500.0,9.589e-05,2]
[347749476,1736093464796,-833.46,9.589e-05,2]
[347749477,1736093464806,-618.53,9.589e-05,2]
[347749478,1736093464816,-651.97,9.589e-05,2]
[347749479,1736093464826,-1575.34,9.589e-05,2]
[347749480,1736093464836,-911.74,9.589e-05,2]
[347749481,1736093464845,-568.0,9.589e-05,2]
[347749482,1736093464855,-1028.15,9.589e-05,2]
[347749483,1736093464864,-721.89,9.589e-05,2]
[347749484,1736093464874,-633.58,9.589e-05,2]
[347749485,1736093464884,-500.0,9.589e-05,2]
[347749486,1736093464893,-3107.24,9.589e-05,2]
[347749487,1736093464903,-1378.57,9.589e-05,2]
[347749488,1736093464913,-500.0,9.589e-05,2]
[347749489,1736093464923,-675.6,9.589e-05,2]
[347749490,1736093464932,-500.0,9.589e-05,2]
[347749491,1736093464942,-790.0,9.589e-05,2]
[347749492,1736093464951,-500.0,9.589e-05,2]
[347749493,1736093464961,-1312.45,9.589e-05,2]
[347749494,1736093464971,-747.11,9.589e-05,2]
[347749495,1736093464980,-2431.88,9.589e-05,2]
[347749496,1736093464990,-660.9,9.589e-05,2]
[347749497,1736093464999,-741.89,9.589e-05,2]
[347749498,1736093465009,-500.0,9.589e-05,2]
[347749499,1736093465018,-998.2,9.589e-05,2]
[347749500,1736093465028,-742.57,9.589e-05,2]
[347749501,1736093465037,-950.19,9.589e-05,2]
[347749502,1736093465047,-545.49,9.589e-05,2]
[347749503,1736093465057,-851.4,9.589e-05,2]
[347749504,1736093465067,-500.0,9.589e-05,2]
[347749505,1736093465076,-1502.24,9.589e-05,2]
[347749506,1736093465085,-500.0,9.589e-05,2]
[347749507,1736093465094,-829.09,9.589e-05,2]
[347749508,1736093465104,-1529.57,9.589e-05,2]
[347749509,1736093465113,-775.67,9.589e-05,2]
[347749510,1736093465123,-500.0,9.589e-05,2]
[347749511,1736093465132,-643.9,9.589e-05,2]
[347749512,1736093465142,-1972.78,9.589e-05,2]
[347749513,1736093465151,-596.39,9.589e-05,2]
[347749514,1736093465160,-2401.07,9.589e-05,2]
[347749515,1736093465171,-376.057504,9.589e-05,2]
[347749516,1736093465180,-500.0,9.589e-05,2]
[347749517,1736093465190,-500.0,9.589e-05,2]
[347749518,1736093465200,-7216.14,9.589e-05,2]
[347749519,1736093465210,-4809.85,9.589e-05,2]
[347749520,1736093465219,-500.0,9.589e-05,2]
[347749521,1736093465229,-500.0,9.589e-05,2]
[347749522,1736093465238,-1336.17,9.589e-05,2]
[347749523,1736093465247,-4510.33,9.589e-05,2]
[347749524,1736093465256,-664.2,9.589e-05,2]
[347749525,1736093465266,-2680.26,9.589e-05,2]
[347749526,1736093465275,-897.44,9.589e-05,2]
[347749527,1736093465285,-376.812101,9.589e-05,2]
[347749528,1736093465295,-402.062172,9.589e-05,2]
[347749529,1736093465305,-514.62,9.589e-05,2]
[347749530,1736093465315,-863.94,9.589e-05,2]
[347749531,1736093465324,-2020.86,9.589e-05,2]
[347749532,1736093465334,-500.0,9.589e-05,2]
[347749533,1736093465344,-845.14,9.589e-05,2]
[347749534,1736093465353,-1165.06,9.589e-05,2]
[347749535,1736093465363,-898.28,9.589e-05,2]
[347749536,1736093465372,-500.0,9.589e-05,2]
[347749537,1736093465382,-682.97,9.589e-05,2]
[347749538,1736093465392,-377.384262,9.589e-05,2]
[347749539,1736093465402,-402.854924,9.589e-05,2]
[347749540,1736093465411,-4822.3,9.589e-05,2]
[347749541,1736093465422,-2567.67,9.589e-05,2]
[347749542,1736093465432,-1978.57,9.589e-05,2]
[347749543,1736093465442,-820.85,9.589e-05,2]
[347749544,1736093465452,-730.9,9.589e-05,2]
[347749545,1736093465460,-905.94,9.589e-05,2]
[347749546,1736093465469,-500.0,9.589e-05,2]
[347749547,1736093465479,-924.98,9.589e-05,2]
[347749548,1736093465492,-730.86,9.589e-05,2]
[347749549,1736093465502,-500.0,9.589e-05,2]
[347749550,1736093465511,-500.0,9.589e-05,2]
[347749551,1736093465521,-500.0,9.589e-05,2]
[347749552,1736093465534,-1979.73,9.589e-05,2]
[347749553,1736093465543,-1891.01,9.589e-05,2]
[347749554,1736093465552,-403.649579,9.589e-05,2]
[347749555,1736093465563,-377.632664,9.589e-05,2]
[347749556,1736093465571,-923.16,9.589e-05,2]
[347749557,1736093465581,-1008.74,9.589e-05,2]
[347749558,1736093465590,-5323.99,9.589e-05,2]
[347749559,1736093465599,-634.71,9.589e-05,2]
[347749560,1736093465608,-1030.31,9.589e-05,2]
[347749561,1736093465617,-654.82,9.589e-05,2]
[347749562,1736093465627,-910.23,9.589e-05,2]
[347749563,1736093465636,-6129.68,9.589e-05,2]
[347749564,1736093465645,-599.32,9.589e-05,2]
[347749565,1736093465654,-404.206485,9.589e-05,2]
[347749566,1736093465663,-3801.67,9.589e-05,2]
[347749567,1736093465672,-500.0,9.589e-05,2]
[347749568,1736093465681,-2105.78,9.589e-05,2]
[347749569,1736093465691,-1038.71,9.589e-05,2]
[347749570,1736093465700,-2739.97,9.589e-05,2]
[347749571,1736093465710,-500.0,9.589e-05,2]
[347749572,1736093465719,-1877.63,9.589e-05,2]
[347749573,1736093465728,-1306.48,9.589e-05,2]
[347749574,1736093465737,-700.64,9.589e-05,2]
[347749575,1736093465747,-377.522457,9.589e-05,2]
[347749576,1736093465756,-1088.73,9.589e-05,2]
[347749577,1736093465766,-4575.44,9.589e-05,2]
[347749578,1736093465775,-1166.76,9.589e-05,2]
[347749579,1736093465784,-500.0,9.589e-05,2]
[347749580,1736093465794,-3359.4,9.589e-05,2]
[347749581,1736093465803,-844.34,9.589e-05,2]
[347749582,1736093465812,-500.0,9.589e-05,2]
[347749583,1736093465821,-524.21,9.589e-05,2]
[347749584,1736093465831,-1166.37,9.589e-05,2]
[347749585,1736093465841,-502.97,9.589e-05,2]
[347749586,1736093465850,-1494.76,9.589e-05,2]
[347749587,1736093465859,-2102.36,9.589e-05,2]
[347749588,1736093465869,-1697.98,9.589e-05,2]
[347749589,1736093465878,-500.0,9.589e-05,2]
[347749590,1736093465888,-377.105117,9.589e-05,2]
[347749591,1736093465897,-2476.3,9.589e-05,2]
[347749592,1736093465906,-404.362946,9.589e-05,2]
[347749593,1736093465916,-707.61,9.589e-05,2]
[347749594,1736093465925,-2758.22,9.589e-05,2]
[347749595,1736093465934,-500.0,9.589e-05,2]
[347749596,1736093465943,-1004.07,9.589e-05,2]
[347749597,1736093465953,-500.0,9.589e-05,2]
[347749598,1736093465963,-994.13,9.589e-05,2]
[347749599,1736093465972,-540.89,9.589e-05,2]
[347749600,1736093465981,-638.23,9.589e-05,2]
[347749601,1736093465991,-936.98,9.589e-05,2]
[347749602,1736093466000,-500.0,9.589e-05,2]
[347749603,1736093466010,-714.43,9.589e-05,2]
[347749604,1736093466019,-500.0,9.589e-05,2]
[347749605,1736093466029,-376.50909,9.589e-05,2]
[347749606,1736093466038,-404.088734,9.589e-05,2]
[347749607,1736093466048,-4018.14,9.589e-05,2]
[347749608,1736093466057,-576.42,9.589e-05,2]
[347749609,1736093466066,-579.85,9.589e-05,2]
[347749610,1736093466076,-554.81,9.589e-05,2]
[347749611,1736093466085,-768.81,9.589e-05,2]
[347749612,1736093466094,-1663.25,9.589e-05,2]
[347749613,1736093466103,-567.53672186,9.589e-05,2]
[347749614,1736093466113,-500.0,9.589e-05,2]
[347749615,1736093466127,-375.919903,9.589e-05,2]
[347749616,1736093466136,-500.0,9.589e-05,2]
[347749617,1736093466146,-3514.34,9.589e-05,2]
[347749618,1736093466155,-870.76,9.589e-05,2]
[347749619,1736093466164,-403.4983,9.589e-05,2]
[347749620,1736093466175,-972.86,9.589e-05,2]
[347749621,1736093466185,-500.0,9.589e-05,2]
[347749622,1736093466194,-1212.28,9.589e-05,2]
[347749623,1736093466203,-626.28,9.589e-05,2]
[347749624,1736093466214,-928.76,9.589e-05,2]
[347749625,1736093466223,-1177.81,9.589e-05,2]
[347749626,1736093466233,-1032.98,9.589e-05,2]
[347749627,1736093466243,-807.78,9.589e-05,2]
[347749628,1736093466252,-569.16,9.589e-05,2]
[347749629,1736093466261,-2723.22,9.589e-05,2]
[347749630,1736093466270,-402.803781,9.589e-05,2]
[347749631,1736093466280,-647.44,9.589e-05,2]
[347749632,1736093466290,-375.527974,9.589e-05,2]
[347749633,1736093466300,-586.44,9.589e-05,2]
[347749634,1736093466310,-2820.24,9.589e-05,2]
[347749635,1736093466320,-1463.16,9.589e-05,2]
[347749636,1736093466329,-2129.06,9.589e-05,2]
[347749637,1736093466339,-625.48,9.589e-05,2]
[347749638,1736093466348,-758.75,9.589e-05,2]
[347749639,1736093466358,-7531.06,9.589e-05,2]
[347749640,1736093466367,-2335.63,9.589e-05,2]
[347749641,1736093466376,-500.0,9.589e-05,2]
[347749642,1736093466386,-931.19,9.589e-05,2]
[347749643,1736093466395,-1840.4,9.589e-05,2]
[347749644,1736093466405,-803.93,9.589e-05,2]
[347749645,1736093466414,-917.79,9.589e-05,2]
[347749646,1736093466423,-1119.32,9.589e-05,2]
[347749647,1736093466433,-402.22777,9.589e-05,2]
[347749648,1736093466442,-3520.61,9.589e-05,2]
[347749649,1736093466451,-500.0,9.589e-05,2]
[347749650,1736093466461,-706.11,9.589e-05,2]
[347749651,1736093466470,-500.0,9.589e-05,2]
[347749652,1736093466479,-4019.56,9.589e-05,2]
[347749653,1736093466494,-717.02,9.589e-05,2]
[347749654,1736093466503,-557.28,9.589e-05,2]
[347749655,1736093466513,-500.0,9.589e-05,2]
[347749656,1736093466522,-150.0,9.665e-05,2]
[347749657,1736093466532,-150.0,9.678e-05,2]
[347749658,1736093466542,-150.0,9.693e-05,2]
[347749659,1736093466551,-150.0,9.739e-05,2]
[347749660,1736093466561,-150.0,9.742e-05,2]
[347749661,1736093466571,-655.01702052,9.742e-05,2]
[347749662,1736093466580,-429.58022011,9.743e-05,2]
[347749663,1736093466590,-150.0,9.744e-05,2]
[347749664,1736093466599,-150.0,9.759e-05,2]
[347749665,1736093466608,-1520.47881383,9.771e-05,2]
[347749666,1736093466619,-8664.11395084,9.772e-05,2]
[347749667,1736093466628,-65377.9491911,9.772e-05,2]
[347749668,1736093466637,-1520.47881383,9.772e-05,2]
[347749669,1736093466648,-556.24372645,9.772e-05,2]
[347749670,1736093466657,-65377.9491911,9.772e-05,2]
[347749671,1736093466667,-8664.11395084,9.773e-05,2]
[347749672,1736093466677,-200.0,9.773e-05,2]
[347749673,1736093466687,-200.0,9.773e-05,2]
[347749674,1736093466697,-852.9979495,9.774e-05,2]
[347749675,1736093466706,-244.87926665,9.775e-05,2]
[347749676,1736093466716,-12152.35467256,9.775e-05,2]
[347749677,1736093466725,-1520.47881383,9.775e-05,2]
[347749678,1736093466735,-489.75853332,9.775e-05,2]
[347749679,1736093466745,-489.75853332,9.775e-05,2]
[347749680,1736093466754,-1520.47881383,9.777e-05,2]
[347749681,1736093466764,-556.24372645,9.778e-05,2]